Workbook

Sheet INSTRUCTIONS
A1: INSTRUCTIONS FOR COMPLETING THE TORNADO REPAIR & PRESERVATION APPLICATION & PROFORMA WORKSHEETS
A3: General Instructions
B4: A. | C4: You will only be able to enter information into yellow input cells. All other cells are protected or are for AHC use.
B5: B. | C5: Complete the following worksheets in the order corresponding to their numbering: 1) Application, 2) Repair Budget, 3) Construction Costs, 4) Sources & Uses, 5) Units & Revenue, 6) Operating Budget, 7) Living Wage, 8) 1099, and 9) New Owner.
B6: C. | C6: All worksheets above must be completed. Information on each worksheet is linked to other sheets.
B7: D. | C7: To print this entire file, click on File>Print and select "Print Entire Workbook."
A8: 1) Application
B9: A. | C9: This is the general application form. Fill all applicable yellow cells. Many sections will prompt you with drop-down menus. Some cells will initially be blank and will populate once you have completed other sheets in this workbook.
B10: B. | C10: All Sources of Funds, including Insurance, FEMA Disaster Assistance, and other assistance to repair the units should be entered into the Application (Tab 1: B127 - B140). They should fill into the Sources & Uses Sheet (Tab 4).
B11: C. | C11: Include all documents & exhibits listed in the Application Checklist (Section V) with two printed hard copy applications (worksheets 1-9) to AHC before the deadline. Email this Excel Spreadsheet file to AHC's Housing Analyst at: ahcrecoveryrepairs@stlouis-mo.gov. One copy must be in a three-ring binder, with tabs corresponding to each number (on the checklist). One copy must be secured with a single binder clip and submitted without tabs, staples or paperclips. 3) Applicants must provide a complete copy of the application and all exhibits on a labeled USB Flash drive. If you have questions about your proposal, funding requirements or procedures, please email Loretta Hiner at ahcrecoveryrepairs@stlouis-mo.gov before the deadline. The 1st funding round deadline is Friday, September 11, 2026 at 5 p.m. It is anticipated funding allocations for this funding round will be made by Friday, October 16, 2026. The 2nd funding round deadline is Friday, October 2, 2026. It is anticipated that allocation decisions will be made by Friday, November 20, 2026.
B12: D. | C12: Sign the Certifications Section VI. Submit the two (2) hard copies with original signatures to AHC.
A13: 2) Repair Budget
B14: A. | C14: The Repair Budget is 1 page. Note: Construction Costs are entered on Tab 3, labeled Construction Costs.
B15: B. | C15: The worksheet will calculate Total Costs (TDC).
B16: C. | C16: AHC requires verification by a title company of clear title prior to disbursing any funds. You are advised to include the fee for the Title Report in the Repair Budget.
B17: D. | C17: Grant funds will be disbursed through a disbursing agent (title company). You are advised to include the Disbursing Fee in the Repair Budget. Disbursing Fees typically run .5% of the amount of funds to be disbursed.
A18: 3) Construction Costs
B19: A. | C19: Enter detailed construction costs.
B20: B. | C20: After completing this Worksheet, review Repair Budget (Tab 2), to insure cost data transferred properly.
A21: 4) Summary Sources & Uses
B22: A. | C22: Enter the amount of your Grant Request in Cell E21.
B23: B. | C23: All other Sources of Funds (Insurance, FEMA Disaster Assistance, and other assistance to repair the damaged units should be entered into the Application (Tab 1: B127 - B140). They should fill into the Sources & Uses Sheet (Tab 4).
B24: C. | C24: Check that Total Costs = Total Sources of Funds.
B25: D. | C25: Enter Annual Debt Service in Cell B52.
A26: 5) Units & Revenue
B27: A. | C27: Unit: Enter Number of Units, Type of Units, Square Footage, and Rent. Include the Contract Rent (the rent charged to tenants or rent that a voucher will provide). The Square Footage in the far right column will calculate.
B28: B. | C28: Other Income: Enter other sources of revenue you are reasonably confident the project will receive.
B29: C. | C29: Annual Operating Subsidies: If the project will receive an operating subsidy, enter the source & amount.
A30: 6) Annual Operating Budget
B31: A. | C31: Input a vacancy rate (7% is the default). You may modify this as appropriate.
B32: B. | C32: Enter the expected stabilized operating expenses.
A33: 7) Living Wage Acknowledgement & Acceptance
B34: A. | C34: Complete this form. If the applicant is a non-profit agency that previously received AHC funding and there have been no changes to the agency's: 1) non-profit status, 2) Articles of Incorporation and 3) By-laws, please sign the No Change Affidavit.
A35: 8) 1099
A36: 9) New Ownership
C37: Explain how the new ownership is consistent with the intent of this Tornado Repair & Preservation Grant program.

Sheet 1) Application
A1: TORNADO REPAIR & PRESERVATION GRANT
A2: AFFORDABLE HOUSING COMMISSION
A6: I. | B6: Owner/Applicant Information
B7: Entity Name: | P7: Federal I.D. #:
B8: Contact Person: | P8: Phone:
B9: Address: | M9: Email:
B10: City: | L10: State: | P10: Zip:
B11: Legal Form: | K11: Date Entity Formed | Q11: State of Organization
B13: Is owner/applicant a mission-driven nonprofit housing provider?
B14: Is owner/applicant a certified Community Development Corporation?
B16: If owner/applicant is a nonprofit housing provider or certified CDC, describe organization mission:
B20: Ownership is Consistent with Ownership on May 16, 2025
B21: Is the owner of the property (to be repaired) substantially the same ownership as it was on May 16, 2026? Ownership changes
B22: not materially altering ownership or control include: transfers among family members, co-owners, trusts, estates, or other
B23: similar circumstances.
B25: If ownership has materially changed, complete Tab 9 (New Owner). Explain how the new ownership is consistent with this program.
B28: Owner May 16, 2025: | Q28: Federal I.D. #:
B29: Contact Person: | P29: Phone:
B30: Address: | M30: Email:
B31: City: | L31: State: | P31: Zip:
B32: Legal Form: | K32: Date Entity Formed | Q32: State of Organization
B34: General Information
B35: Project Information
B36: Repair Project Name:
B37: Street Address: | O37: Neighborhood:
B38: St. Louis, MO | G38: Zip: | N38: Ward: | Q38: Census Tract:
B40: Property ID#:
B51: You Must Input # of Units in this Section
B52: Total Number of Damaged Units | J52: =SUM(J53:K60) -> 0
B53: Number of Market Units | L53: Funding not provided for Market Rate Units
B54: Number of Units at 80%
B55: Number of Units at 70%
B56: Number of Units at 60%
B57: Number of Units at 50% | O57: Number of LMI Units | U57: =J54+J55+J56+J57+J58+J59+J60 -> 0
B58: Number of Units at 40% | M58: Number of Damaged LMI Units
B59: Number of Units at 30%
B60: Number of Units at 20%
B61: Housing Type
B63: Population Served
B64: Describe the tenant population served:
D65: Disabled
D66: Elderly
D67: Previously Homeless
D68: Youth & Families
D69: Veterans
D70: Formerly incarcerated
D71: LGBT
D72: Other
B74: Income Restrictions
B75: If the owner is not a tax-exempt organization, the property must hold proof of an active Land Use Restriction Agreement (LURA)
B76: or, Agreement for Covenants & Restrictions that limit the rent and the income level of residents.
B77: Is owner Tax-Exempt?
B79: Does this property have an active or recently active LURA or Agreement for Covenants & Restrictions?
B80: Describe the income and rent restrictions currently on the property:
B84: Name of Grantee (entity requiring the income restriction)
B86: Describe the damage and repairs and how you will ensure construction commences within 6 months of a contract.
B96: Property Information
B98: Year Constructed:
B99: Number of Residential Buildings:
B100: Total Number of Rental Units:
B101: Number of Affordable Rental Units:
B102: Occupancy prior to the tornado:
B103: Current Occupancy Rate:
B104: Is the property currently habitable? | M104: Number of currently habitable units: | U104: 0
A106: II. | B106: Financial Capacity
B107: Mortgage Holder(s) | M107: Mortgage Balance | R107: Status | W107: Reasons Property was not insured
W108: Insurance was unavailable or prohibitively expensive
W109: Property was underinsured
W110: Coverage did not include tornado damage
W111: Other
B112: Total Mortgages | M112: =SUM(M108:P111) -> 0
B114: Insurance and other Assistance
B115: Was property insured May 16, 2025?
B116: Was insurance required by lender?
B117: If No, state the reason the property was not insured. | P117: Not having insurance is not a disqualification.
O118: Use Drop-Down Box to left
B119: Explain why property was not insured:
J124: Insurance Company Address Phone
B125: Current Insurance Company:
B126: Has an insurance claim been filed? | M126: Claim Number:
B127: Insurance Proceeds Received:
B128: Insurance Proceeds Pending:
B129: Insurance Deductible:
B131: Has FEMA assistance been received?
B132: Amount of FEMA assistance received:
B133: Assistance Received: | J133: =J127+J128+J132 -> 0
B134: Has assistance been received from any other federal, state, local, nonprofit, or private source?
B136: Other Assistance, only include funds for repairs | N136: Assistance Received
B137: Source 4:
B138: Source 5:
B139: Source 6:
B141: Other Assistance Subtotal | N141: =SUM(N137:P140) -> 0
B142: Total Assistance Received | N142: =N141+J133 -> 0
B143: Owner Contributrion (Owner Equity):
B144: Sources of Funds: Assistance + Owner Equity | N144: =N142+N143 -> 0
B147: Repair Costs, Available Sources & Funding Request
B149: Total Repair Cost | N149: ='2) Repair Budget'!I80 -> 0 | Q149: Repair Budget = I80
B150: Insurance Deductible | N150: =J129 -> 0
B151: Total Dev. Cost: Cost to Repair + Insurance Deductible | N151: =N149+N150 -> 0
B152: Sources: Assistance + Owner Equity (before Grant) | N152: =N142+N143 -> 0
B153: Repair GAP (Cost to repair prior to Grant) | N153: =N151-N152 -> 0
B154: Requested Grant | N154: ='4) Sources & Uses'!E21 -> 0
B155: Gap after City Funded Grant | N155: =N153-N154 -> 0
A157: III. | B157: Capacity, Track Record & Readiness to Proceed
B159: Access to financing | W159: Lender Commitment Letter
B160: If there is an unfunded repair gap above and beyond the Owner's Contribution and a City Grant, does the applicant have: | W160: Lender Letter of Intent
J161: If other: | W161: Relationship with a Bank
B162: Describe how remaining repair costs will be funded if grant does not cover the total Gap: | W162: Other:
B168: Describe applicant's experience owning, managing and repairing affordable rental housing.
B174: Repair Schedule | J174: Completed | N174: Month | Q174: Year
B175: Insurance Claim Filed
B176: FEMA Application Submitted
B177: Contractor Selected
B178: Cost Estimates Obtained
B179: Status of Permits
B180: Financing Secured
B181: Construction Start
B182: Construction Complete
B183: Unit Occupied
M184: Total Construction Schedule: | Q184: months
G185: Number of months after October 2026 | Q185: months
B187: Construction/Repair Team Information if known at time of application
E188: Name | J188: Address | T188: Phone
B189: Contractor:
B190: Consultant:
B191: Attorney:
B192: Tax Accountant:
B193: Architect:
B194: Engineer:
B196: Construction/Repair Manager
B197: Construction Management Company/Consultant
B198: Construction/Repair Manager: | P198: Phone:
B199: Address: | M199: Email:
B200: City: | L200: State: | P200: Zip:
B201: Describe Construction Manager's experience scheduling repairs, inspecting work, submitting expenditures,
B202: and managing construction projects.
A209: IV. | B209: Property Management
B210: Name of management staff/company:
B211: Property Manager: | P211: Phone:
B212: Address: | M212: Email:
B213: City: | L213: State: | P213: Zip:
C214: How many units is your staff or 3rd party mgt company currently managing?
C216: How many income-restricted units is your staff/mgt company currently managing?
B218: Staff/Manager's experience managing income-restricted rental units and performing & providing compliance documentation.
B226: Omissions: List all required documents that are not included in this application.
A233: V. | B233: Application Checklist | K233: =project -> 0
A234: 1 | B234: Include all documents & exhibits listed in the Application Checklist (Section V) with two printed hard copy applications (worksheets 1-9) to AHC before the deadline. One copy must be in a three-ring binder, with tabs corresponding to each number (on the checklist). One copy must be secured with a single binder clip and submitted without tabs, staples or paperclips. Applicants must provide a complete copy of the application and all exhibits on a labeled USB Flash drive, and, all applicants must email the Excel spreadsheet file to Loretta Hiner at: ahcrecoveryrepairs@stlouis-mo.gov.
A235: 2 | B235: Locator Map - indicating the location of the proposed repair project.
A236: 3 | B236: Completed City of St. Louis Tornado Repair & Preservation Grant Application. All omissions must be stated in Cell B227 of the application. The Certifications Section VI. Must Be Signed.
A237: 4 | B237: A copy of all assistance received to repair units damaged by the May 16, 2025 tornado, or to be received. Includes Insurance Payout if it exists, FEMA assistance, etc…
A238: 5 | B238: Proof of non-duplication of benefits.
A239: 6 | B239: Applicant's Certificate of Corporate Good Standing, dated within the last 6 months.
A240: 7 | B240: City of St. Louis Business License, dated within the last 12 months.
A241: 8 | B241: Owner/Applicant
B242: a. | C242: Articles of Incorporation, if applicable
B243: b. | C243: By-Laws, if applicable
B244: c. | C244: Certificate of Incorporation, if applicable
B245: d. | C245: IRS Non-Profit Determination Letter 501(C)(3) federal Tax Exemption Letter, if applicable
A246: 9 | B246: Evidence of Proper Zoning.
A247: 10 | B247: Active Land Use Restriction Agreement if Owner/Applicant is not Tax-Exempt
A248: 11 | B248: Documented tornado related damage with date-of-loss evidence
A249: Tornado Repair & Preservation Grant Application Worksheets (tabs)
B250: 1 | C250: AHC Application
B251: 2 | C251: Repair Budget
B252: 3 | C252: Construction Costs
B253: 4 | C253: Sources & Uses
B254: 5 | C254: Units & Revenue
B255: 6 | C255: Operating Budget
B256: 7 | C256: Living Wage
B257: 8 | C257: 1099
B258: 9 | C258: New Owner Tab, if owner is materially different than on May 16, 2025.
A259: VI. | B259: Certification
B260: The undersigned applicant(s) hereby each certify that, to the best of my/our knowledge, all of the information in this application and all supporting documentation is correct, complete and accurate.
B261: I certify all units will be made Lead Safe
C262: All rehabilitation projects must comply with the City's Lead Safe requirements and receive a Lead Safe Clearance performed by a State Licensed Lead Inspector at the project's conclusion.
C264: I certify that | F264: =+project -> 0
C265: will comply with the City's Lead Safe Requirements.
C266: Signed: | Q266: Date:
F267: Owner Signature
F269: Owner Print Name
B271: All recipients of Funds must agree to obtain adequate insurance throughout the term of the Land Use Restriction
B272: Agreement (LURA). The Affordable Housing Commission is to be listed as an additional insured.
B273: All recipients of Funds must agree to execute a new Land Use Restriction Agreement (LURA).
B274: The new Land Use Restriction Agreement will remain in effect for six (6) years from the date of project completion.
B275: During the term of the Land Use Restriction Agreement (LURA), the applicant agrees to annually submit income
B276: compliance reports and insurance certifications with the Affordable Housing Commission listed as an additional insured.
B277: After all obligations are met and upon successful completion of the six-year affordability period, the grant shall be forgiven.
B278: If the Land Use Restriction Agreement (LURA) is breached, the full award amount must be repaid.
B279: Applicant understands and agrees to these terms:
B281: Signed:
D282: Applicant | Q282: Date
B283: I/We further certify that:
B284: 1. | C284: The costs listed in the application are reasonable, sufficient, and necessary to complete the repairs to full habitability.
B285: 2. | C285: I agree to hold harmless and indemnify the Affordable Housing Commission and the individual directors, employees, members, officers, and agents of AHC in the event that the owner or anyone acting on the owner's behalf, at the owner's request or by and through the owner incurs any loss in conjunction with the repair project.
B286: 3. | C286: The owner will provide any funds necessary to complete the repairs over and above those shown in the Sources of Funds form as available to complete the project and confirm it has such funds available to pay such costs.
B287: 4. | C287: The owner agrees not to take any profit from the project assistance applied for in this application.
B288: 5. | C288: But for the project assistance being applied for in this application, the repairs would not be made.
B289: 6. | C289: I understand and agree that my application for funds, all attachments thereto, and all correspondence relating to my application are subject to a disclosure request, and I expressly consent to such disclosure. I further understand that any and all correspondence to me from AHC or other AHC-generated documents relating to my application are subject to a request for disclosure and I expressly consent to such disclosure. I agree to hold harmless AHC and the individual directors, employees, members, officers, and agents of AHC against all losses, costs, damages, expenses, and liability of whatsoever nature or kind (including, but not limited to, attorney's fees, litigation, and court costs) directly or indirectly resulting from or arising out of the release of all information pertaining to my application pursuant to a disclosure request.
B290: 7. | C290: I understand that any misrepresentations in this application or supporting documentation may result in a withdrawal of grant funds and my (and related parties) being barred from future program participation.
B291: 8. | C291: All tornado assistance and insurance has been disclosed and revealed. There is no overlap of funds with prior City tornado funding for the same units or scope, and the applicant attests there is no duplication of benefits.
... 6 more rows

Sheet 2) Repair Budget
A1: Tornado Repair & Preservation Grant Application/Proforma
A2: REPAIR BUDGET
B3: Project: | C3: =project -> 0 | G3: Applicant: | H3: =dev -> 0 | L3: Square Feet | N3: ='5) Units & Revenue'!J40 -> 0 | P3: Total Units: | Q3: ='1) Application'!J52 -> 0
A4: AHC Request: | D4: ='4) Sources & Uses'!E21 -> 0 | G4: Address: | H4: ='1) Application'!F37 -> 0 | P4: LMI Units: | Q4: ='1) Application'!U57 -> 0
G5: Housing Type: | H5: ='1) Application'!G61 -> 0
I6: Total
B7: Total Construction Cost | I7: ='3) Construction Costs'!K73 -> 0 | L7: From Construction Cost, Tab 3
B9: SOFT COSTS | I9: TOTAL | L9: Per Unit | N9: Per SF | P9: % TDC
B10: Architect & Engineering Fee-Design | L10: =I10/$Q$3 -> 
B11: Architect Fee - Supervision
B12: Soils Report
B13: Survey
B14: Engineering
B15: Total | I15: =SUM(I10:J14) -> 0 | N15: =I15/N3 ->  | P15: =I15/$I$80 -> 
I16: =I7+I15 -> 0
B17: CONSTRUCTION COSTS | G17: fills from Construction Costs Tab 3
B18: General Cond., Overhead & Profit | I18: ='3) Construction Costs'!K66+'3) Construction Costs'!K70+'3) Construction Costs'!K71 -> 0 | L18: =I18/$Q$3 -> 
B19: Construction Contingency | I19: ='3) Construction Costs'!K72 -> 0 | L19: =I19/$Q$3 -> 
B20: Construction Hard Costs | I20: ='3) Construction Costs'!K73-'2) Repair Budget'!I18-'2) Repair Budget'!I19 -> 0 | L20: =I20/$Q$3 -> 
B21: Total Construction | I21: =SUM(I18:I20) -> 0 | L21: =I21/$Q$3 ->  | N21: =I21/N3 ->  | P21: =I21/$I$80 -> 
B23: CARRYING AND CONSTRUCTION FINANCING COSTS
B24: Construction Loan Interest | L24: =I24/$Q$3 -> 
B25: Construction Period R.E.Taxes
B26: Construction Period Insurance
B27: Other Construction Loan Fee
B28: Other Construction Inspection Fee
B29: Other Permanent Financing Fee
B30: Environmental Study
B31: Market Study
B32: Appraisal
B33: Title Recording & Disbursing (Construction Loan)
B34: Total Carrying/Finance: | I34: =SUM(I24:J33) -> 0 | N34: =I34/N3 ->  | P34: =I34/$I$80 -> 
B36: PERMANENT FINANCING
B37: Title Recording & Disbursing (Permanent Loan) | L37: =I37/$Q$3 -> 
B38: Legal
B39: Environmental Abatement
B40: Other:
B41: Total Permanent Financing | I41: =SUM(I37:J40) -> 0 | N41: =I41/N3 ->  | P41: =I41/$I$80 -> 
A43: Affordable Housing Commission Rental Production Application/Proforma, Page 2
A44: DEVELOPMENT BUDGET
B45: Project: | C45: =project -> 0 | G45: Developer: | H45: =dev -> 0 | L45: Square Feet | N45: =N3 -> 0 | P45: Total Units: | Q45: ='1) Application'!J52 -> 0
G46: Address: | H46: ='1) Application'!F37 -> 0 | P46: LMI Units: | Q46: ='1) Application'!U57 -> 0
B49: PROFESSIONAL SERVICES | I49: TOTAL | L49: Per Unit | N49: Per SF | P49: % TDC
B50: Relocation | L50: =I50/$Q$45 -> 
B51: FF & E | L51: =I51/$Q$45 -> 
B52: Other:(Describe) | D52: Security Systems
B53: Total Professional Services | I53: =SUM(I50:J52) -> 0 | N53: =I53/N45 ->  | P53: =I53/$I$80 -> 
B55: Replacement Cost w/o Acquisition | I55: =I53+I41+I34+I16 -> 0 | L55: =I55/Q45 -> 
B57: BUILDING AND PROPERTY ACQUISITION
B58: Other Acquisition Related Costs | L58: =I58/$Q$45 -> 
B59: Acquisition Cost | I59: =SUM(I58:J58) -> 0 | L59: =I59/$Q$45 ->  | N59: =I59/N45 ->  | P59: =I59/$I$80 -> 
B61: Total Replacement Cost (lines 53-57) | I61: =SUM(I55:J58) -> 0 | L61: =I61/Q45 ->  | N61: =I61/N45 ->  | P61: =I61/$I$80 -> 
B63: FEES/MISC
B64: Consultant's Fee | L64: =I64/$Q$45 -> 
B65: Lease-up/Marketing | L65: =I65/$Q$45 -> 
B66: Other:(Describe)
B67: Other:(Describe)
B68: Other:(Describe)
B69: Other:(Describe)
B70: Total Fees/Misc | I70: =SUM(I64:J69) -> 0 | N70: =I70/N45 ->  | P70: =I70/$I$80 -> 
B72: RESERVES
B73: Operating Reserve (cash escrow) | L73: =I73/$Q$45 -> 
B74: Replacement Reserve (cash escrow) | L74: =I74/$Q$45 -> 
B75: Other Escrow(s):
B76: Other Escrow(s):
B77: Other Escrow(s):
B78: Total Reserves | I78: =SUM(I73:J77) -> 0 | N78: =I78/N45 ->  | P78: =I78/$I$80 -> 
B80: Total Repair Cost | I80: =I78+I70+I61 -> 0 | L80: =I80/Q3 ->  | N80: =I80/N45 ->  | P80: =I80/$I$80 -> 

Sheet 3) Construction Costs
A1: CONTRACTOR'S/MORTGAGOR'S COST BREAKDOWN
K2: Square Feet: | M2: ='5) Units & Revenue'!J40 -> 0 | Q2: Units: | S2: ='1) Application'!J52 -> 0
Q3: LMI Units: | S3: ='1) Application'!U57 -> 0
A4: Project: | C4: =project -> 0
A5: Owner: | D5: =dev -> 0
A6: AHC Request: | D6: ='4) Sources & Uses'!E21 -> 0
A7: Address: | D7: ='1) Application'!F37 -> 0
Q9: Date of Plans used for estimate:
K11: Total | Q11: Per | S11: Per | U11: %
B12: Item Description of Work | K12: Scheduled Value | Q12: Unit | S12: SF | U12: Construction
A14: Site Work
A15: 1 | B15: Earthwork | Q15: =K15/$S$2 ->  | S15: =K15/$M$2 ->  | U15: =K15/$K$73 -> 
A16: 2 | B16: Site Utilities | Q16: =K16/$S$2 ->  | S16: =K16/$M$2 ->  | U16: =K16/$K$73 -> 
A17: 3 | B17: Roads & Walks | U17: =K17/$K$73 -> 
A18: 4 | B18: Off Site Work | K18: 0 | U18: =K18/$K$73 -> 
A19: Subtotal Sitework | K19: =SUM(K15:N18) -> 0 | Q19: =SUM(Q15:Q18) ->  | S19: =SUM(S15:S18) ->  | U19: =SUM(U15:V18) -> 
A21: New Building/Rehabilitation
A22: 5 | B22: Concrete | U22: =K22/$K$73 -> 
A23: 6 | B23: Masonry
A24: 7 | B24: Structural Metals
A25: 8 | B25: Rough Carpentry
A26: 9 | B26: Finish Carpentry
A27: 10 | B27: Cabinets
A28: 11 | B28: Waterproofing
A29: 12 | B29: Insulation
A30: 13 | B30: Roofing Systems
A31: 14 | B31: Siding
A32: 15 | B32: Gutters & Downspouts
A33: 16 | B33: Doors & Hardware
A34: 17 | B34: Windows
A35: 18 | B35: Drywall
A36: 19 | B36: Flooring
A37: 20 | B37: Carpet | K37: 0
A38: 21 | B38: Painting
A39: 22 | B39: Signage
A40: 23 | B40: Bathroom & Closet Accessories
A41: 24 | B41: Appliances
A42: 25 | B42: Window Coverings
A43: 26 | B43: Plumbing
A44: 27 | B44: Fire Sprinklers | K44: 0
A45: 28 | B45: HVAC
A46: 29 | B46: Electrical
A47: 30 | B47: Fire Alarm Systems | K47: 0
A48: 31 | B48: Special Equipment | K48: 0
A49: 32 | B49: Landscaping
A50: Subtotal Structure | K50: =SUM(K22:N49) -> 0 | Q50: =SUM(Q22:Q49) ->  | S50: =SUM(S22:S49) ->  | U50: =SUM(U22:V49) -> 
A52: Demolition/Other
A53: 33 | B53: Other | K53: 0 | U53: =K53/$K$73 -> 
A54: 34 | B54: Accessory Bldg | K54: 0
A55: 35 | B55: Demolition (interior rehab)
A56: 36 | B56: Demolition (land make-ready) | K56: 0
A57: 37 | B57: Sheet Metal
A58: 38 | B58: Bonding
A59: 39 | B59: Building Permits
A60: 40 | B60: Other | K60: 0
A61: 41 | B61: Other | K61: 0
A62: 42 | B62: Other | K62: 0
A63: Demolition Subtotal | K63: =SUM(K53:N62) -> 0
A64: Construction Subtotal | K64: =K63+K50+K19 -> 0
A66: General Requirements (Attach separate | O66: =K66/K64 ->  | U66: =K66/$K$73 -> 
B67: page detailing costs)
A68: Subtotal | K68: =SUM(K64:N66) -> 0 | U68: =K68/$K$73 -> 
A70: Builder's Overhead | O70: =K70/K64 ->  | U70: =K70/$K$73 -> 
A71: Builder's Profit | O71: =K71/K64 ->  | U71: =K71/$K$73 -> 
A72: Construction Contingency | Q72: =K72/S2 ->  | S72: =K72/M2 ->  | U72: =K72/K73 -> 
A73: TOTAL CONSTRUCTION | K73: =SUM(K68:N72) -> 0 | U73: =K73/$K$73 -> 
A75: General Requirements | K75: % Construction | P75: Limits
A76: General Requirement | K76: =K66/K73 ->  | P76: 0.06
A77: Builder's Overhead | K77: =K70/K73 ->  | P77: 0.02
A78: Builders Profit | K78: =K71/K73 ->  | P78: 0.08

Sheet 4) Sources & Uses
A1: Tornado Repair & Preservation Grant Application/Proforma
A2: Sources & Uses Summary
B4: Project Name | C4: =project -> 0 | H4: Total Units: | I4: ='1) Application'!J52 -> 0
B5: Owner: | C5: =dev -> 0 | E5: Total Square Feet: | F5: ='5) Units & Revenue'!J40 -> 0 | G5: LMI Units: | I5: ='1) Application'!U57 -> 0
B6: Grant Requested: | C6: =E21 -> 0 | E6: Avg SqFt/Unit: | F6: =F5/I4 -> 
E8: Average Rent | F8: ='5) Units & Revenue'!S31 -> 
B10: Repair Costs | E10: Total | F10: Per Unit | G10: % of Total
B11: Total Construction | E11: ='2) Repair Budget'!I21 -> 0 | F11: =E11/$I$4 ->  | G11: =E11/$E$17 ->  | H11: Const.Cost/SqFt: | J11: =E11/F5 -> 
B12: Total Professional Services | E12: ='2) Repair Budget'!I53 -> 0 | H12: Total Cost/SqFt: | J12: =E17/F5 -> 
B13: Total Carrying & Construction Financing | E13: ='2) Repair Budget'!I34 -> 0
B14: Total Permanent Financing | E14: ='2) Repair Budget'!I41 -> 0
B15: Total Reserves | E15: ='2) Repair Budget'!I78 -> 0
B16: Total Fees/Misc | E16: ='2) Repair Budget'!I70 -> 0
B17: Total Repair Cost | E17: =SUM(E11:E16) -> 0
B18: Insurance Deductible | E18: ='1) Application'!J129 -> 0
B19: Total Cost | E19: =SUM(E17:E18) -> 0
B20: Construction Financing | D20: List Source | E20: Total | F20: Per Unit | G20: % of Total | H20: Status of Funds: Secured or Not Secured
B21: Grant requested* | F21: =E21/$I$4 ->  | G21: =E21/'2) Repair Budget'!$I$80 ->  | H21: Pending
B22: Owner Equity - fills from Application B127 | E22: ='1) Application'!N143 -> 0 | G22: =E22/'2) Repair Budget'!$I$80 -> 
B23: Insurance Payout - fills from Application B111+B112 | E23: ='1) Application'!J127+'1) Application'!J128 -> 0 | G23: =E23/'2) Repair Budget'!$I$80 -> 
B24: FEMA Assistance - fills from Application B117 | E24: ='1) Application'!J132 -> 0 | G24: =E24/'2) Repair Budget'!$I$80 -> 
B25: ='1) Application'!B137 -> Source 4: | E25: ='1) Application'!N137 -> 0 | G25: =E25/'2) Repair Budget'!$I$80 -> 
B26: ='1) Application'!B138 -> Source 5: | E26: ='1) Application'!N138 -> 0 | G26: =E26/'2) Repair Budget'!$I$80 -> 
B27: ='1) Application'!B139 -> Source 6: | E27: ='1) Application'!N139 -> 0 | G27: =E27/'2) Repair Budget'!$I$80 -> 
B28: Total Sources | E28: =SUM(E21:E27) -> 0 | G28: =E28/E19 -> 
B30: (GAP) or Surplus | E30: =E28-E17 -> 0 | G30: =(E30/'2) Repair Budget'!I80) -> 
B31: =IF(E28=E17,"","Sources & Uses Do Not Match") -> 
B34: Unit Mix | C34: Efficiency | D34: 1 BR | E34: 2 BR | F34: 3 BR | G34: 4 BR | H34: Total
B35: 20% AMI | C35: ='5) Units & Revenue'!C7 -> 0 | D35: ='5) Units & Revenue'!C18 -> 0 | E35: ='5) Units & Revenue'!C29 -> 0 | F35: ='5) Units & Revenue'!N7 -> 0 | G35: ='5) Units & Revenue'!N18 -> 0 | H35: =SUM(C35:G35) -> 0
B36: 30% AMI | C36: =+'5) Units & Revenue'!C8 -> 0 | D36: =+'5) Units & Revenue'!C19 -> 0 | E36: =+'5) Units & Revenue'!C30 -> 0 | F36: =+'5) Units & Revenue'!N8 -> 0 | G36: =+'5) Units & Revenue'!N19 -> 0 | H36: 0
B37: 40% AMI | C37: ='5) Units & Revenue'!C9 -> 0 | D37: ='5) Units & Revenue'!C20 -> 0 | E37: ='5) Units & Revenue'!C31 -> 0 | F37: ='5) Units & Revenue'!N9 -> 0 | G37: ='5) Units & Revenue'!N20 -> 0 | H37: 0
B38: 50% AMI | C38: ='5) Units & Revenue'!C10 -> 0 | D38: ='5) Units & Revenue'!C21 -> 0 | E38: ='5) Units & Revenue'!C32 -> 0 | F38: ='5) Units & Revenue'!N10 -> 0 | G38: ='5) Units & Revenue'!N21 -> 0 | H38: 0
B39: 60% AMI | C39: ='5) Units & Revenue'!C11 -> 0 | D39: ='5) Units & Revenue'!C22 -> 0 | E39: ='5) Units & Revenue'!C33 -> 0 | F39: ='5) Units & Revenue'!N11 -> 0 | G39: ='5) Units & Revenue'!N22 -> 0 | H39: 0
B40: 70% AMI | C40: =+'5) Units & Revenue'!C12 -> 0 | D40: =+'5) Units & Revenue'!C23 -> 0 | E40: =+'5) Units & Revenue'!C34 -> 0 | F40: =+'5) Units & Revenue'!N12 -> 0 | G40: =+'5) Units & Revenue'!N23 -> 0 | H40: 0
B41: 80% AMI | C41: =+'5) Units & Revenue'!C13 -> 0 | D41: =+'5) Units & Revenue'!C24 -> 0 | E41: =+'5) Units & Revenue'!C35 -> 0 | F41: =+'5) Units & Revenue'!N13 -> 0 | G41: =+'5) Units & Revenue'!N24 -> 0 | H41: 0
B42: Market Rate | C42: ='5) Units & Revenue'!C14 -> 0 | D42: ='5) Units & Revenue'!C25 -> 0 | E42: ='5) Units & Revenue'!C36 -> 0 | F42: ='5) Units & Revenue'!N14 -> 0 | G42: ='5) Units & Revenue'!N25 -> 0 | H42: 0
B43: Total | C43: =SUM(C35:C42) -> 0 | D43: 0 | E43: 0 | F43: 0 | G43: 0 | H43: =SUM(H35:H42) -> 0
B45: Operating Budget | D45: Annual | E45: Per Unit | F45: Assumptions
B46: Gross Rent Potential | D46: ='5) Units & Revenue'!T29 -> 0 | E46: =D46/$I$4 ->  | F46: Vacancy Rate: | H46: ='6) Operating Budget'!C13 -> 0.07
B47: Other Income | D47: ='5) Units & Revenue'!T41 -> 0 | E47: =D47/$I$4 ->  | F47: Inflation | H47: 1-2%
B48: Vacancy | D48: ='6) Operating Budget'!D13 -> 0 | F48: Administrative Inflation | H48: 0.03
B49: Adjusted Gross Income | D49: ='6) Operating Budget'!D14 -> 0
B50: Operating Expenses | D50: ='6) Operating Budget'!I32 -> 0
B51: Net Operating Income | D51: ='6) Operating Budget'!I36 -> 0
B52: Annual Debt Service | D52: 0

Sheet 5) Units & Revenue
B1: ='4) Sources & Uses'!A1 -> Tornado Repair & Preservation Grant Application/Proforma
B2: Unit Information & Gross Revenue Potential
B3: Project: | E3: =project -> 0 | J3: Owner: | M3: =dev -> 0 | O3: Total Units: | P3: ='1) Application'!#REF! ->  | Q3: ='1) Application'!J52 -> 0 | S3: LMI Units: | T3: ='1) Application'!U57 -> 0
C4: Address: | E4: ='1) Application'!F37 -> 0 | I4: Grant Request: | M4: ='4) Sources & Uses'!E21 -> 0 | O4: Housing Type: | Q4: ='1) Application'!G61 -> 0
B5: Efficiency Units
C6: # of Units | D6: % AMI Targeted | E6: Baths | F6: Sq. Ft. | G6: Rent | H6: Monthly Rent | I6: Annual Rent | J6: # LMI Units | K6: Sq.Ft. | M6: 3 BR Units | N6: # of Units | O6: % AMI Targeted | P6: Baths | Q6: Sq. Ft. | R6: Rent | S6: Monthly Rent | T6: Annual Rent | U6: # LMI Units | V6: Sq.Ft.
D7: 0.2 | H7: =C7*G7 -> 0 | I7: =H7*12 -> 0 | K7: =F7*C7 -> 0 | O7: 0.2 | S7: =N7*R7 -> 0 | T7: =S7*12 -> 0 | V7: =Q7*N7 -> 0
D8: 0.3 | H8: 0 | I8: 0 | K8: =F8*C8 -> 0 | O8: 0.3 | S8: =N8*R8 -> 0 | T8: 0 | V8: =Q8*N8 -> 0
D9: 0.4 | H9: 0 | I9: 0 | K9: 0 | O9: 0.4 | S9: 0 | T9: 0 | V9: 0
D10: 0.5 | H10: 0 | I10: 0 | K10: 0 | O10: 0.5 | S10: 0 | T10: 0 | V10: 0
D11: 0.6 | H11: 0 | I11: 0 | K11: 0 | O11: 0.6 | S11: 0 | T11: 0 | V11: 0
D12: 0.7 | H12: 0 | I12: 0 | K12: 0 | O12: 0.7 | S12: 0 | T12: 0 | V12: 0
D13: 0.8 | H13: 0 | I13: 0 | K13: =F13*C13 -> 0 | O13: 0.8 | S13: 0 | T13: 0 | V13: 0
D14: Market Rate | H14: 0 | I14: 0 | K14: 0 | O14: Market Rate | S14: 0 | T14: 0 | V14: 0
B15: Subtotal | C15: =SUM(C7:C14) -> 0 | H15: =SUM(H7:H14) -> 0 | I15: =SUM(I7:I14) -> 0 | J15: =+J7+J8+J9+J10+J11+J12+J13+J14 -> 0 | K15: =SUM(K7:K14) -> 0 | M15: Subtotal | N15: =SUM(N7:N14) -> 0 | S15: =SUM(S7:S14) -> 0 | T15: =SUM(T7:T14) -> 0 | U15: =+U7+U8+U9+U10+U11+U12+U13+U14 -> 0 | V15: =SUM(V7:V14) -> 0
B17: 1 BR Units | C17: # of Units | D17: % AMI Targeted | E17: Baths | F17: Sq. Ft. | G17: Rent | H17: Monthly Rent | I17: Annual Rent | J17: # LMI Units | K17: Sq.Ft. | M17: 4 BR Units | N17: # of Units | O17: % AMI Targeted | P17: Baths | Q17: Sq. Ft. | R17: Rent | S17: Monthly Rent | T17: Annual Rent | U17: # LMI Units | V17: Sq.Ft.
D18: 0.2 | H18: =C18*G18 -> 0 | I18: =H18*12 -> 0 | K18: =F18*C18 -> 0 | O18: 0.2 | S18: =N18*R18 -> 0 | T18: =S18*12 -> 0 | V18: =Q18*N18 -> 0
D19: 0.3 | H19: 0 | I19: 0 | K19: 0 | O19: 0.3 | S19: =N19*R19 -> 0 | T19: 0 | V19: =Q19*N19 -> 0
D20: 0.4 | H20: 0 | I20: 0 | K20: 0 | O20: 0.4 | S20: 0 | T20: 0 | V20: 0
D21: 0.5 | H21: 0 | I21: 0 | K21: 0 | O21: 0.5 | S21: 0 | T21: 0 | V21: 0
D22: 0.6 | H22: 0 | I22: 0 | K22: 0 | O22: 0.6 | S22: 0 | T22: 0 | V22: 0
D23: 0.7 | H23: 0 | I23: 0 | K23: 0 | O23: 0.7 | S23: 0 | T23: 0 | V23: 0
D24: 0.8 | H24: 0 | I24: 0 | K24: 0 | O24: 0.8 | S24: 0 | T24: 0 | V24: 0
D25: Market Rate | H25: 0 | I25: 0 | K25: 0 | O25: Market Rate | S25: 0 | T25: 0 | V25: 0
B26: Subtotal | C26: =SUM(C18:C25) -> 0 | H26: =SUM(H18:H25) -> 0 | I26: =SUM(I18:I25) -> 0 | J26: =+J18+J19+J20+J21+J22+J23+J24+J25 -> 0 | K26: =SUM(K18:K25) -> 0 | M26: Subtotal | N26: =SUM(N18:N25) -> 0 | S26: =SUM(S18:S25) -> 0 | T26: =SUM(T18:T25) -> 0 | U26: =+U18+U19+U20+U21+U22+U23+U24+U25 -> 0 | V26: =SUM(V18:V25) -> 0
B28: 2 BR Units | C28: # of Units | D28: % AMI Targeted | E28: Baths | F28: Sq. Ft. | G28: Rent | H28: Monthly Rent | I28: Annual Rent | J28: # LMI Units | K28: Sq.Ft. | S28: Monthly Rent | T28: Annual Rent
D29: 0.2 | H29: =C29*G29 -> 0 | I29: =H29*12 -> 0 | K29: =F29*C29 -> 0 | M29: Total Units | O29: =N26+N15+C37+C26+C15 -> 0 | R29: Gross Rent Potential | S29: =S26+S15+H37+H26+H15 -> 0 | T29: =T26+T15+I37+I26+I15 -> 0
D30: 0.3 | H30: =C30*G30 -> 0 | I30: 0 | K30: =F30*C30 -> 0 | M30: Total LMI Units | O30: =+J15+J26+J37+U15+U26 -> 0
D31: 0.4 | H31: 0 | I31: 0 | K31: =F31*C31 -> 0 | R31: Per Unit Avg | S31: =S29/O29 ->  | T31: =T29/O29 -> 
D32: 0.5 | H32: 0 | I32: 0 | K32: 0
D33: 0.6 | H33: 0 | I33: 0 | K33: 0 | M33: Other Income | S33: Monthly | T33: Annually
D34: 0.7 | H34: 0 | I34: 0 | K34: 0
D35: 0.8 | H35: 0 | I35: 0 | K35: 0 | M35: Miscellaneous & Interest | T35: =S35*12 -> 0
D36: Market Rate | H36: 0 | I36: 0 | K36: 0 | M36: Laundry | T36: 0
B37: Subtotal | C37: =SUM(C29:C36) -> 0 | H37: =SUM(H29:H36) -> 0 | I37: =SUM(I29:I36) -> 0 | J37: =+J29+J30+J31+J32+J33+J34+J35+J36 -> 0 | K37: =SUM(K29:K36) -> 0 | M37: Carports/Garages | T37: 0
M38: Tenant Charges (late fees, insufficient funds, etc) | T38: 0
C39: Special Populations Review | G39: Square Footage | M39: Operating Subsidy: | O39: (source) | T39: 0
C40: ='1) Application'!B65 -> 0 | D40: Disabled | G40: Residential Square Footage | J40: =K15+K26+K37+U15+U26 -> 0 | M40: Other: | T40: 0
C41: ='1) Application'!B66 -> 0 | D41: Elderly | M41: Totals | S41: =SUM(S35:S40) -> 0 | T41: =SUM(T35:T40) -> 0
C42: ='1) Application'!B67 -> 0 | D42: Previously Homeless
C43: ='1) Application'!B68 -> 0 | D43: Youth & Families | P43: Gross Annual Income Potential | T43: =T29+T41 -> 0
C44: ='1) Application'!B69 -> 0 | D44: Veterans
C45: ='1) Application'!B70 -> 0 | D45: Formerly incarcerated
C46: ='1) Application'!B71 -> 0 | D46: LGBT
C47: ='1) Application'!B72 -> 0 | D47: Other

Sheet 6) Operating Budget
B1: ='4) Sources & Uses'!A1 -> Tornado Repair & Preservation Grant Application/Proforma
B2: ANNUAL OPERATING BUDGET
B3: Project: | C3: =project -> 0 | G3: Owner: | I3: =dev -> 0
B4: Address: | C4: ='1) Application'!F37 -> 0 | H4: LMI Units: | I4: ='1) Application'!U57 -> 0
B5: AHC Request: | C5: ='4) Sources & Uses'!E21 -> 0 | H5: Total Units: | I5: ='1) Application'!J52 -> 0
B6: Housing: | C6: ='1) Application'!G61 -> 0
B9: REVENUE | D9: Annual | E9: Per Unit | F9: % Adj Income | H9: Operating | I9: Annual | J9: Per Unit | K9: % Adj Income
B10: Gross Rent Potential | D10: ='5) Units & Revenue'!T29 -> 0 | E10: =D10/'1) Application'!$J$52 ->  | H10: Security | J10: =I10/'1) Application'!$J$52 -> 
B11: Other Revenue | D11: ='5) Units & Revenue'!T41 -> 0 | E11: =D11/'1) Application'!$J$52 ->  | H11: Common Electricity | J11: =I11/'1) Application'!$J$52 -> 
B12: Subtotal | D12: =SUM(D10:D11) -> 0 | E12: =D12/'1) Application'!$J$52 ->  | H12: Water/Sewer | J12: =I12/'1) Application'!$J$52 -> 
B13: Combined Vacancy Rate | C13: 0.07 | D13: =D12*C13 -> 0 | E13: =D13/'1) Application'!$J$52 ->  | H13: Gas | J13: =I13/'1) Application'!$J$52 -> 
B14: Adjusted Gross Income | D14: =D12-D13 -> 0 | E14: =D14/'1) Application'!$J$52 ->  | H14: Trash Removal | J14: =I14/'1) Application'!$J$52 -> 
H15: Payroll | J15: =I15/'1) Application'!$J$52 -> 
B16: OPERATING EXPENSES | H16: Payroll Taxes & Fringes | J16: =I16/'1) Application'!$J$52 -> 
H17: Other: | J17: =I17/'1) Application'!$J$52 -> 
B18: Administrative Costs | D18: Annual | E18: Per Unit | H18: Other: | J18: =I18/'1) Application'!$J$52 -> 
B19: Advertising | E19: =D19/'1) Application'!$J$52 ->  | H19: Other: | J19: =I19/'1) Application'!$J$52 -> 
B20: Management | E20: =D20/'1) Application'!$J$52 ->  | H20: Subtotal | I20: =SUM(I10:I19) -> 0 | J20: =I20/'1) Application'!$J$52 ->  | K20: =(I20/$D$14) -> 
B21: Legal/Partnership | E21: =D21/'1) Application'!$J$52 -> 
B22: Accounting/Audit | E22: =D22/'1) Application'!$J$52 ->  | H22: Escrows & Reserves | I22: Annual | J22: Per Unit
B23: Compliance Monitoring | E23: =D23/'1) Application'!$J$52 ->  | H23: Insurance | J23: =I23/'1) Application'!$J$52 -> 
B24: Other: | E24: =D24/'1) Application'!$J$52 ->  | H24: Real Estate Taxes | J24: =I24/'1) Application'!$J$52 -> 
B25: Other: | E25: =D25/'1) Application'!$J$52 ->  | H25: Other Taxes | J25: =I25/'1) Application'!$J$52 -> 
B26: Other: | E26: =D26/'1) Application'!$J$52 ->  | H26: Other | J26: =I26/'1) Application'!$J$52 -> 
B27: Other: | E27: =D27/'1) Application'!$J$52 ->  | H27: Other: | J27: =I27/'1) Application'!$J$52 -> 
B28: Subtotal | D28: =SUM(D19:D27) -> 0 | E28: =D28/'1) Application'!$J$52 ->  | F28: =(D28/$D$14) ->  | H28: Other: | J28: =I28/'1) Application'!$J$52 -> 
H29: Other: | J29: =I29/'1) Application'!$J$52 -> 
B30: Maintenance | D30: Annual | E30: Per Unit | H30: Subtotal | I30: =SUM(I23:I29) -> 0 | J30: =I30/'1) Application'!$J$52 ->  | K30: =(I30/$D$14) -> 
B31: Decorating | E31: =D31/'1) Application'!$J$52 -> 
B32: Repairs | E32: =D32/'1) Application'!$J$52 ->  | H32: Total Operating Expenses | I32: =D28+D39+I20+I30 -> 0 | J32: =I32/'1) Application'!J52 ->  | K32: =(I32/$D$14) -> 
B33: Exterminating | E33: =D33/'1) Application'!$J$52 -> 
B34: Grounds | E34: =D34/'1) Application'!$J$52 ->  | H34: Replacement Reserve | J34: =I34/'1) Application'!J52 -> 
B35: Other | E35: =D35/'1) Application'!$J$52 ->  | H35: Op Expenses + Replace. Reserve | I35: =I34+I32 -> 0
B36: Other: | E36: =D36/'1) Application'!$J$52 ->  | H36: NET OPERATING INCOME | I36: =D14-I32-I34 -> 0 | J36: =E14-J32-J34 ->  | K36: =(I36/$D$14) -> 
B37: Other: | E37: =D37/'1) Application'!$J$52 -> 
B38: Other: | E38: =D38/'1) Application'!$J$52 -> 
B39: Subtotal | D39: =SUM(D31:D38) -> 0 | E39: =D39/'1) Application'!$J$52 ->  | F39: =(D39/$D$14) -> 
B41: Annual Income and Expenses
B42: Adjusted Gross Income | E42: =D14 -> 0
B43: Annual Operating Expense + Replacement Reserve | E43: =I32+I34 -> 0
B44: Net Operating Income (Effective Income - Expenses) | E44: =D14-I35 -> 0
B45: Annual Debt Service AHC (based on 30-year amortization) | E45: ='4) Sources & Uses'!D52 -> 0

Sheet 7) Living Wage
A1: LIVING WAGE ACKNOWLEDGEMENT AND ACCEPTANCE DECLARATION
B5: (To be completed by each respondent to a bid/proposal solicitation when that solicitation has included Living Wage Advertisement/Solicitation Language)
A9: CONTRACTING AGENCY | H9: Affordable Housing Commission
A11: AGENCY CONTRACT NUMBER | H11: 1430010
A13: BIDDER'S PROPONENT'S NAME:
A15: DATE PREPARED:
A17: PREPARED BY:
A19: PREPARER'S TELEPHONE NUMBER:
A21: PREPARER'S E-MAIL ADDRESS:
A23: PREPARER'S CELL PHONE NUMBER:
A25: PREPARER'S ADDRESS AND ZIP CODE:
A27: As the authorized representative of the above-referenced bidder or proponent, I hereby acknowledge that the bidder/proponent understands that the contract or agreement that will be executed with a successful bidder/proponent pursuant to this solicitation
A34: AUTHORIZED REPRESENTATIVE CERTIFICATION:
A37: Signature
A40: NAME:
A42: TITLE:
A44: DATE:
A48: Living Wage Change/No Change Affidavit for Contracts With
A49: Not-For-Profit Entities
B52: I | I52: swear that there have been no changes in
H53: circumstances affecting its earlier certification as
A54: a non-profit entity conforming to the definition of Exempt Non-Profit Organization in accordance with the Living Wage Ordinance 65597 Subparagraph (A)(iv). I swear there have been no material changes in the information provided to Affordable Housing Commission the organization's IRS Tax-Exemption Status Determination Letter, Articles of Incorporation and By-laws submitted on
E55: .
A58: I specifically swear the following changes have been made (Documentation of Changes shall be submitted with this affidavit):
B62: Signature | I62: Date
A64: State of | G64: , City/County of
A66: On this | C66: day of | F66: 2026 | G66: before me appeared
A67: to me personally known, who, being duly sworn, did execute the foregoing affidavit and did state that he or
A68: she was properly authorized by | M68: ,
E69: name of firm
A70: to execute the affidavit and did so as his or her free act and deed.
A81: (SEAL/STAMP)
A83: Notary Public | H83: Commission Expires

Sheet 8) 1099
D8: 2026-06-12
B10: Affordable Housing Commission
B11: 1520 Market Street, Suite 2080
B12: St. Louis, MO 63103
B14: To Whom It May Concern:
B16: The Internal Revenue Service Tax Equity and Fiscal Responsibility Act of 1982 requires the City of St Louis to have either a Social Security Number for individuals or proprietorships, or a Federal Identification on file for all vendors subject to 1099 reportable payments of $600.00 or more.
C19: Please complete the information below and return this letter to us within fifteen days.
B20: WE ARE UNABLE TO PROCESS ANY PAYMENTS WITHOUT THIS INFORMATION.
B22: 1. Check the Appropriate Company | D22: 2. I.D. Number (Complete One)
B24: _____ Corporation | E24: _____­________________________
F25: Federal I.D. xx-xxxxxxx
B26: _____ Partnership
B28: _____ Individual/Proprietorship | C28: Individual/Proprietorship | E28: _____­________________________
F29: S.S. Number xxx-xx-xxxx
B30: _____ LLC - ____ (Corp) ____ (Partnership)
B31: (Check one of the two above spaces
B32: for tax classification if an LLC)
A34: If you are providing a social security number, please write your name clearly. The IRS will not accept a company name with a social security number for 1099 purposes.
C37: I certify that the information provided above is true, correct and complete.
B39: ________________________________ | D39: _______________________________
B40: Authorized Signature | D40: Title
B43: ________________________________ | D43: _______________________________
B44: Company Name | D44: Date
B47: ________________________________ | D47: _______________________________
B48: Address | D48: City, State, Zip
B50: PLEASE RETURN TO: Affordable Housing Commission
B51: FAX #: 314-613-7015

Sheet Compliance
B1: Tornado Repair & Preservation Grant Application/Proforma
B2: COMPLIANCE CHECK
B3: For AHC Staff Use
B4: Project: | C4: =project -> 0
A7: 2026 Income Guidelines
A8: City of St. Louis
A9: Family Size | B9: 1 | C9: 2 | D9: 3 | E9: 4 | F9: 5 | G9: 6 | H9: 7 | I9: 8
A10: 0.2 | B10: =E10*0.7 -> 15890 | C10: =E10*0.8 -> 18160 | D10: =E10*0.9 -> 20430 | E10: =113500*0.2 -> 22700 | F10: =E10*1.08 -> 24516 | G10: =E10*1.16 -> 26332 | H10: =E10*1.24 -> 28148 | I10: =E10*1.3208 -> 29982.16
A11: 0.3 | B11: 23850 | C11: 27250 | D11: 30650 | E11: 34050 | F11: 38680 | G11: 44360 | H11: 50040 | I11: 55720
A12: 0.4 | B12: =E12*0.7 -> 31780 | C12: 36320 | D12: 40860 | E12: =113500*0.4 -> 45400 | F12: =E12*1.08 -> 49032 | G12: =E12*1.16 -> 52664 | H12: =E12*1.24 -> 56296 | I12: =E12*1.3208 -> 59964.32
A13: 0.5 | B13: 39750 | C13: 45400 | D13: 51100 | E13: 56750 | F13: 61300 | G13: 65850 | H13: 70400 | I13: 74950
A14: 0.6 | B14: =E14*0.7 -> 47670 | C14: =E14*0.8 -> 54480 | D14: =E14*0.9 -> 61290 | E14: =113500*0.6 -> 68100 | F14: =E14*1.08 -> 73548 | G14: =E14*1.16 -> 78996 | H14: =E14*1.24 -> 84444 | I14: =E14*1.3208 -> 89946.48
A15: 0.65 | B15: =E15*0.7 -> 51642.5 | C15: =E15*0.8 -> 59020 | D15: =E15*0.9 -> 66397.5 | E15: =113500*0.65 -> 73775 | F15: =E15*1.08 -> 79677 | G15: =E15*1.16 -> 85579 | H15: =E15*1.24 -> 91481 | I15: =E15*1.3208 -> 97442.02
A16: 0.7 | B16: =E16*0.7 -> 55615 | C16: 63560 | D16: 71505 | E16: =113500*0.7 -> 79450 | F16: =E16*1.08 -> 85806 | G16: =E16*1.16 -> 92162 | H16: =E16*1.24 -> 98518 | I16: =E16*1.3208 -> 104937.56
A17: 0.8 | B17: 63600 | C17: 72650 | D17: 81750 | E17: 90800 | F17: 98100 | G17: 105350 | H17: 112600 | I17: 119900
A18: St. Louis Area (MO-IL) Median Family Income (AMI) for year 2026 is $113,500.
A19: Source: HUD Income Limits, huduser.gov/portal/datasets, June 2026.
A22: 2026 Fair Market Rents By Unit Bedrooms
A23: Final FY 2026 | B23: Efficiency | C23: One-Bedroom | D23: Two-Bedroom | E23: Three-Bedroom | F23: Four-Bedroom
B24: 955 | C24: 995 | D24: 1218 | E24: 1568 | F24: 1812
A25: Source: https://www.huduser.gov/portal/datasets/fmr/fmrs/FY2026_code/2026state_summary.odn, July 2026

Sheet 9) New Owner
A1: Tornado Repair & Preservation Grant Application
A2: New Ownership (changed since May 16, 2025)
B5: Ownership Change
B6: Explain why the ownership of the rental property(ies) changed since May 2025:
B12: Does the new ownership:
A13: 1. | C13: Serve a public purpose.
A14: 2. | C14: Preserve the recovery objectives of the affordable housing preservation program.
A15: 3. | C15: Advance the City's recovery goals.
B18: If you answered Yes, explain how the ownership change is supports the objectives of this program.

Sheet Eligibility (hidden)
A1: ELIGIBILITY ANALYSIS & COMPLETENESS REVIEW
B3: Project: | C3: =Evaluation!C2 -> 0 | F3: Applicant: | H3: ='1) Application'!E7 -> 0 | N3: Total Units: | O3: ='1) Application'!J52 -> 0
A4: AHC Request: | C4: ='4) Sources & Uses'!E21 -> 0 | E4: Project Address: | H4: ='1) Application'!F37 -> 0 | L4: Damaged LMI Units: | O4: ='1) Application'!U58 -> 0
F5: Housing Type: | H5: ='1) Application'!G61 -> 0
B6: Reviewed by:
B8: Eligibility Analysis
B9: N/A | C9: YES | D9: NO | E9: DESCRIPTION
E10: 1. Application received on or by 5 p.m., Friday, September 11, 2026
E11: 2. Federal Identification Number provided
E12: 3. City of St. Louis tax and business license successfully verified by AHC Staff (CBI Clearance)
E13: 4. Complete & satisfactory AHC Conflict of Interest Disclosure Statement provided
E14: 5. State of Missouri Certificate of Corporate Good Standing provided, dated no more than 6 months old
E15: 6. Three hard copies of Tornado Repair & Preservation Grant Application & Proforma provided
E16: 7. One original copy of Tornado Repair & Preservation Grant Application & Proforma with original signatures provided
E17: 8. One electronic copy of Excel-based Tornado Repair & Preservation Grant & Proforma emailed to hinerl@stlouis-mo.gov
E18: 9. All items on checklist are submitted in order and each item is clearly identified
E19: 10. Applicant has not defaulted on a previous AHC loan.
E20: 11. Proposal is eligible to apply: it is located in the Tornado Impact Area; It proposes to repair rental housing units serving LMI residents; LMI rental housing units were damaged in the May 2025 tornado; The owner agrees to sign a new 6-year Land Use Restriction Agreement (LURA) if awarded funds; and, if the owner is not a tax-exempt organization, the property currently holds proof of an active Land Use Restriction Agreement (LURA) or Covenants for Agreements & Restrictions restricting the income of residents.
E21: 12. lf the ownership has materially changed since May 16, 2025, the owner has satisfactorily shown the project is consistent with, and advances, the City's tornado recovery goals.
A22: Section Intentionally Left Blank
A23: Continue to Page 2
B24: Proposal Completeness Review
B25: If NO is checked for any section, the application will be determined to be incomplete.
B26: N/A | C26: YES | D26: NO | E26: DESCRIPTION
E27: 1. Locator Map - indicating the location of the proposed repair project.
E28: 2. All omissions must be stated in Cell B227 of the application. Certifications Section VI. Must Be Signed.
E29: 3. A copy of all tornado financial assistance received, or to be received. Includes Insurance payout (if exists), FEMA assistance, and all charitable contributions.
E30: 4. Proof of non-duplication of benefits.
E31: 5. City of St. Louis Business License, dated within the last 12 months.
E32: a. Owner/Applicant Articles of Incorporation, if applicable. | F32: Articles of Incorporation, if applicable
E33: b. Owner/Applicant By-Laws, if applicable. | F33: By-Laws, if applicable
E34: c. Owner/Applicant Certificate of Incorporation, if applicable. | F34: Certificate of Incorporation, if applicable
E35: d. Owner/Applicant IRS Non-Profit Determination Letter 501(C)(3) federal Tax Exemption Letter, if applicable. | F35: IRS Non-Profit Determination Letter 501(C)(3) federal Tax Exemption Letter, if applicable
E36: 6. Evidence of Proper Zoning.
E37: 7. Copy of active Land Use Restriction Agreement if Owner/Applicant is not Tax-Exempt.
E38: 8. Documented tornado related damage with date-of-loss evidence.
E39: Tornado Repair & Preservation Grant Application Worksheets (tabs)
E40: Tab 1. Tornado Repair & Preservation Grant Application
E41: Tab 2. Tornado Repair & Preservation Grant Application
E42: Tab 3. Construction Costs
E43: Tab 4. Sources & Uses
E44: Tab 5. Units & Revenue
E45: Tab 6. Operating Budget
E46: Tab 7. Living Wage
E47: Tab 8. 1099
E48: Tab 9. New Owner, if owner is materially different than on May 16, 2025.
B50: AHC STAFF USE ONLY
B51: Date Received: | H51: Time Received: | N51: By (initials)
B53: Proposal Complete? | G53: YES | J53: NO

Sheet Evaluation (hidden)
A2: PROPOSAL #: | I2: Ward # | J2: ='1) Application'!O38 -> 0
A3: NAME: | B3: =project -> 0 | F3: OWNER: | H3: =dev -> 0
I4: Amount Requested: | J4: ='4) Sources & Uses'!E21 -> 0
I5: Total Cost: | J5: =Review!F33 -> 0
I6: Number of Damaged LMI Units: | J6: ='1) Application'!U58 -> 0
I7: Total Number of Damaged Units: | J7: ='1) Application'!J52:K52 -> 0
A8: PROPOSAL DESCRIPTION (including leverage sources)
A14: Calculation of Grant Funds Per Affordable Unit Rehabilitated. | K14: =J4/J6 -> 
A15: Calculation of % of total project budget to requested amount: | K15: =J4/J5 -> 
A17: NOFA Priority:
A18: Applicant is a certified Community Development Corporation | K18: ='1) Application'!S14 -> 0
A19: Applicant is a non-profit, mission-driven affordable housing provider | K19: ='1) Application'!S13 -> 0
G20: Receives Priority Consideration | K20: =IF(OR(K18="Yes", K19="Yes"), "Yes", "No") -> No
A22: Insured May 16, 2025? | D22: ='1) Application'!J115 -> 0 | F22: If No: | G22: ='1) Application'!B118 -> 0
A24: Eligibility:
A29: Project Readiness & Contractor Capacity
A34: Costs, Cost/Benefit, of Affordable Housing Preservation
A39: Organizational Capacity
A44: Additional Comments/Observations
A48: DISCLOSURE OF COMMISSIONER CONFLICT (if any): | H48: N/A
A50: STAFF RECOMMENDATION: | H50: Amount:
A52: REASONS NOT TO FUND:
A54: STAFF RECOMMENDED TERMS:
A58: COMMISSION APPROVAL: | H58: Amount:
A60: COMMISSION RECOMMENDED TERMS:

Sheet Review (hidden)
A1: Project Name: | B1: ='1) Application'!F36 -> 0 | H1: Neighborhood: | I1: ='1) Application'!R37 -> 0
A2: Project Number: | C2: =Evaluation!C2:D2 -> 0 | H2: Ward: | I2: ='1) Application'!O38 -> 0
A3: Owner/Applicant: | C3: ='1) Application'!E7 -> 0 | H3: Project Address: | I3: ='1) Application'!F37 -> 0
A4: Funding Request: | C4: ='4) Sources & Uses'!E21 -> 0
A5: Total Cost: | C5: =F33 -> 0
A6: Insured May 16, 2025: | C6: ='1) Application'!J115 -> 0
A7: Reason Not Insured: | C7: ='1) Application'!B118 -> 0
A8: Explanation: | C8: ='1) Application'!J119 -> 0
A10: Income Served | B10: # Units | C10: LMI Units | F10: Timeframe | H10: ='1) Application'!N185 -> 0 | I10: Months after October 2026
A11: 20% AMI | B11: ='1) Application'!J60 -> 0 | F11: Complete | H11: ='1) Application'!N182 -> 0 | I11: ='1) Application'!Q182 -> 0
A12: 30% AMI | B12: ='1) Application'!J59 -> 0 | F12: Occupied | H12: ='1) Application'!N183 -> 0 | I12: ='1) Application'!Q183 -> 0
A13: 40% AMI | B13: ='1) Application'!J58 -> 0
A14: 50% AMI | B14: ='1) Application'!J57 -> 0
A15: 60% AMI | B15: ='1) Application'!J56 -> 0
A16: 70% AMI | B16: ='1) Application'!J55 -> 0
A17: 80% AMI | B17: ='1) Application'!J54 -> 0
A18: Market-Rate | B18: ='1) Application'!J53 -> 0
A19: Total | B19: =SUM(B11:B18) -> 0 | C19: ='1) Application'!U57 -> 0
A22: Sources of Funds | F22: Amount | H22: % of Total Cost | I22: Status
A23: Owner Equity | F23: ='4) Sources & Uses'!E22 -> 0 | H23: =F23/$C$5 ->  | I23: ='4) Sources & Uses'!H22:J22 -> 0
A24: Insurance Payout | F24: ='4) Sources & Uses'!E23 -> 0 | I24: ='4) Sources & Uses'!H23:J23 -> 0
A25: FEMA Assistance | F25: ='4) Sources & Uses'!E24 -> 0 | I25: ='4) Sources & Uses'!H24:J24 -> 0
A26: ='4) Sources & Uses'!B25 -> Source 4: | F26: ='4) Sources & Uses'!E25 -> 0 | I26: ='4) Sources & Uses'!H25:J25 -> 0
A27: ='4) Sources & Uses'!B26 -> Source 5: | F27: ='4) Sources & Uses'!E26 -> 0 | I27: ='4) Sources & Uses'!H26:J26 -> 0
A28: ='4) Sources & Uses'!B27 -> Source 6: | F28: ='4) Sources & Uses'!E27 -> 0 | I28: ='4) Sources & Uses'!H27:J27 -> 0
A29: ='4) Sources & Uses'!B21 -> Grant requested* | F29: ='4) Sources & Uses'!E21 -> 0 | I29: Pending
A30: ='4) Sources & Uses'!B28 -> Total Sources | F30: =SUM(F23:G29) -> 0 | H30: =SUM(H23:H29) -> 
A32: Summary | F32: Amount | H32: % of Total Cost
A33: Total Cost (Includes Insurance Deductible) | F33: =F34+'1) Application'!J129 -> 0 | H33: 1
A34: Total Repair Cost | F34: ='4) Sources & Uses'!E17 -> 0 | H34: =F34/F33 -> 
A35: Repair Gap (Cost to repair prior to Grant) | F35: ='1) Application'!N153 -> 0 | H35: =F35/F33 -> 
A36: Requested Grant | F36: =F29 -> 0 | H36: =F36/F33 -> 
A37: ='1) Application'!B155 -> Gap after City Funded Grant | F37: ='1) Application'!N155 -> 0 | H37: =F37/F33 -> 
A38: Hard Construction Cost | F38: ='3) Construction Costs'!K73 -> 0 | H38: =F38/$C$5 -> 
A39: Soft Costs | F39: ='4) Sources & Uses'!E12+'4) Sources & Uses'!E13+'4) Sources & Uses'!E14+'4) Sources & Uses'!E15+'4) Sources & Uses'!E16 -> 0 | H39: =F39/$C$5 -> 
A40: Contingency | F40: ='3) Construction Costs'!K72 -> 0 | H40: =F40/$C$5 -> 
A41: Repair Cost Per Damaged LMI Unit | F41: =F33/'1) Application'!U58 -> 
A42: Cost Per Square Foot | F42: ='2) Repair Budget'!N80 -> 
A43: Grant Per Damaged LMI Unit | F43: =F29/'1) Application'!U58 -> 
A44: Return on Public Investment per year affordability | F44: =F36/6 -> 0
A45: Leveraging Ratio | F45: =F33/F36 -> 
A46: Net Operating Income | F46: ='6) Operating Budget'!I36 -> 0 | H46: =F46/'1) Application'!U58 ->  | I46: NOI/Unit
A47: Insurance Payout Per Damaged LMI Unit | F47: =('1) Application'!J127+'1) Application'!J128)/'1) Application'!U58 -> 
A48: Owner Equity Per Damaged LMI Unit | F48: ='1) Application'!N143/'1) Application'!U58 -> 
A49: If Ownership has Materially Changed since May 16, 2025: | F49: ='9) New Owner'!B13 -> 0 | G49: Serves a public purpose
F50: ='9) New Owner'!B14 -> 0 | G50: Preserves the recovery objectives of the program
F51: ='9) New Owner'!B15 -> 0 | G51: Advances the City’s recovery goals

Sheet Rate (hidden)
A1: Project Number: | B1: =Evaluation!C2 -> 0 | I1: Neighborhood: | L1: ='1) Application'!R37 -> 0
A2: Project Name: | B2: ='1) Application'!F36 -> 0 | K2: Ward: | L2: ='1) Application'!O38 -> 0
A3: Owner/Applicant: | B3: ='1) Application'!E7 -> 0 | K3: Project Address: | L3: ='1) Application'!F37 -> 0
A4: Funding Request: | B4: ='4) Sources & Uses'!E21 -> 0
A5: Total Cost: | B5: =Review!F33 -> 0
A7: Date of Rating:
A8: Priorities: The proposal attains the NOFA priorities. | B8: 1 | D8: 2 | F8: 3 | H8: 4 | J8: 5 | L8: 6 | N8: 7 | P8: 8 | R8: 9
B9: Proposal is not a priority. | H9: Does not attain priority status, but meets basic qualifications | N9: High Priority: Owner/Applicant is a CDC or a mission-driven nonprofit organization
A12: Target Area: The proposed project is located in the Tornado Impact Area | B12: 1 | D12: 2 | F12: 3 | H12: 4 | J12: 5 | L12: 6 | N12: 7 | O12: 8 | P12: 8
B13: Not located in Tornado Impact Area | J13: Located in the Tornado Impact Area.
A16: Targeted Households: The proposed project provides affordable housing to income-eligible households. | B16: 1 | D16: 2 | F16: 3 | H16: 4 | J16: 5 | L16: 6 | N16: 7 | P16: 8 | R16: 9
B17: Not eligible: Market-Rate | H17: Meets eligibility ≤80% AMI | N17: Exceeds eligibility ≤50%-60% AMI or below AMI
A20: Capacity: The applicant sufficiently demonstrates capacity to commence construction within 6 months of contract execution and successfully complete the project within 12-months. | B20: 1 | D20: 2 | F20: 3 | H20: 4 | J20: 5 | L20: 6 | N20: 7 | P20: 8 | R20: 9
B21: Below: Fails to demonstate ability to marshal resources, commence construction and successfully complete the project and maintain it as affordable for 6 years. | H21: Owner/Applicant's limited experience, abilities, and/or financial resources make this project a challenge. Consider scaling the project down or hiring a consultant. | N21: Exceeds: Confident Owner/Applicant is capable of undertaking and completing this project and preserving LMI units for 6-years.
A23: Financial Strength: The applicant has the capacity, resources and expertise to leverage needed financing to complete the project. | B23: 1 | D23: 2 | F23: 3 | H23: 4 | J23: 5 | L23: 6 | N23: 7 | P23: 8 | R23: 9
B24: Poor/insufficient or not adequately leveraged | H24: Limited equity invested and/or financial capacity | N24: Financial sources identified and/or raised and adequate equity invested
A27: Scope of work: The proposed repairs are reasonable and necessary to return the damaged LMI units to full habitability. | B27: 1 | D27: 2 | F27: 3 | H27: 4 | J27: 5 | L27: 6 | N27: 7 | P27: 8
B28: Scope of work is unclear, inappropriate, or not sufficient for repairing units to full habitability | J28: Scope of work is reasonable and necessary to restore units for full habitability for 6-years
A31: Construction Costs: The proposed costs to repair the units for full habitability are reasonable and necessary. | B31: 1 | D31: 2 | F31: 3 | H31: 4 | J31: 5 | L31: 6 | N31: 7 | P31: 8 | R31: 9
B32: Budget is not clear nor well-defined | H32: Budgeted costs are too low or too high | N32: Budget is clear and well defined and costs are reasonable
A35: Need for Housing Serving Vulnerable Residents: The number of units serving very low-income residents, seniors, people with disabilities, and other vulnerable people justifies the costs. | B35: 1 | D35: 2 | F35: 3 | H35: 4 | J35: 5 | L35: 6 | N35: 7 | P35: 8 | R35: 9
B36: Below | H36: Meets | N36: Exceeds
A39: Tornado Damage Documented: The applicant provided sufficient documentation of tornado-related damage with date of loss estimates. | B39: 1 | D39: 2 | F39: 3 | H39: 4 | J39: 5 | L39: 6 | N39: 7 | P39: 8 | R39: 9
B40: Below | H40: Meets | N40: Exceeds
A43: Cost/Benefit of Affordable Housing Preservation: Preserving these affordable units supports the case for public investment. | B43: 1 | D43: 2 | F43: 3 | H43: 4 | J43: 5 | L43: 6 | N43: 7 | P43: 8 | R43: 9
B44: Below | H44: Meets | N44: Exceeds
